{"text_format":"3","workbook":"xlsx","n_sheets":1,"sheets":["גליון זמנים שנתי"],"not_rendered":{"defined_names":2},"read":"whole","date_system":"1900"}

{"sheet":"גליון זמנים שנתי","index":0,"n_rows":140,"n_cols":12,"rows_kept":140,"merged":[[0,1,1,11],[2,6,2,7],[2,8,2,9],[5,1,5,11],[39,1,39,11],[73,1,73,11],[107,1,107,11]]}
[null,"כרטיס שעות של עובד"]
[]
[null,"שם העובד:",null,"דואר אלקטרוני:",null,null,"סה\"כ מתחילת השנה עד היום:"]
[null,"מנהל:",null,"טלפון:",null,null,"שעות רגילות:",{"$f":"SUM(C16,C27,C38,C50,C61,C72,C84,C95,C106,C118,C129,C140)","v":0},"שעות נוספות:",{"$f":"SUM(F16,F27,F38,F50,F61,F72,F84,F95,F106,F118,F129,F140)","v":0},"סה\"כ:",{"$f":"SUM(H4:J4)","v":0}]
[]
[null,"ינואר, פברואר, מרץ      כרטיס שעות של עובד: יומי, שבועי, חודשי, שנתי"]
[null,"ינואר","שבוע 1","שעות נוספות","שבוע 2","שעות נוספות ","שבוע 3","שעות נוספות  ","שבוע 4","שעות נוספות   ","שבוע 5","שעות נוספות    "]
[null,"שני"]
[null,"שלישי"]
[null,"רביעי"]
[null,"חמישי"]
[null,"שישי"]
[null,"שבת"]
[null,"ראשון"]
[null,"סה\"כ שעות שבועיות",{"$f":"SUBTOTAL(109,ינואר[שבוע 1])","v":0},{"$f":"SUBTOTAL(109,ינואר[שעות נוספות])","v":0},{"$f":"SUBTOTAL(109,ינואר[שבוע 2])","v":0},{"$f":"SUBTOTAL(109,ינואר[[שעות נוספות ]])","v":0},{"$f":"SUBTOTAL(109,ינואר[שבוע 3])","v":0},{"$f":"SUBTOTAL(109,ינואר[[שעות נוספות  ]])","v":0},{"$f":"SUBTOTAL(109,ינואר[שבוע 4])","v":0},{"$f":"SUBTOTAL(109,ינואר[[שעות נוספות   ]])","v":0},{"$f":"SUBTOTAL(109,ינואר[שבוע 5])","v":0},{"$f":"SUBTOTAL(109,ינואר[[שעות נוספות    ]])","v":0}]
[null,"סה\"כ לינואר: שעות רגילות",{"$f":"SUM(ינואר[[#Totals],[שבוע 1]],ינואר[[#Totals],[שבוע 2]],ינואר[[#Totals],[שבוע 3]],ינואר[[#Totals],[שבוע 4]],ינואר[[#Totals],[שבוע 5]])","v":0},"סה\"כ לינואר: שעות נוספות",null,{"$f":"SUM(ינואר[[#Totals],[שעות נוספות]],ינואר[[#Totals],[שעות נוספות ]],ינואר[[#Totals],[שעות נוספות  ]],ינואר[[#Totals],[שעות נוספות   ]],ינואר[[#Totals],[שעות נוספות    ]])","v":0}]
[]
[null,"פברואר","שבוע 1","שעות נוספות","שבוע 2","שעות נוספות ","שבוע 3","שעות נוספות  ","שבוע 4","שעות נוספות   ","שבוע 5","שעות נוספות    "]
[null,"שני"]
[null,"שלישי"]
[null,"רביעי"]
[null,"חמישי"]
[null,"שישי"]
[null,"שבת"]
[null,"ראשון"]
[null,"סה\"כ שעות שבועיות",{"$f":"SUBTOTAL(109,פברואר[שבוע 1])","v":0},{"$f":"SUBTOTAL(109,פברואר[שעות נוספות])","v":0},{"$f":"SUBTOTAL(109,פברואר[שבוע 2])","v":0},{"$f":"SUBTOTAL(109,פברואר[[שעות נוספות ]])","v":0},{"$f":"SUBTOTAL(109,פברואר[שבוע 3])","v":0},{"$f":"SUBTOTAL(109,פברואר[[שעות נוספות  ]])","v":0},{"$f":"SUBTOTAL(109,פברואר[שבוע 4])","v":0},{"$f":"SUBTOTAL(109,פברואר[[שעות נוספות   ]])","v":0},{"$f":"SUBTOTAL(109,פברואר[שבוע 5])","v":0},{"$f":"SUBTOTAL(109,פברואר[[שעות נוספות    ]])","v":0}]
[null,"סה\"כ לפברואר: שעות רגילות",{"$f":"SUM(פברואר[[#Totals],[שבוע 1]],פברואר[[#Totals],[שבוע 2]],פברואר[[#Totals],[שבוע 3]],פברואר[[#Totals],[שבוע 4]],פברואר[[#Totals],[שבוע 5]])","v":0},"סה\"כ לפברואר: שעות נוספות",null,{"$f":"SUM(פברואר[[#Totals],[שעות נוספות]],פברואר[[#Totals],[שעות נוספות ]],פברואר[[#Totals],[שעות נוספות  ]],פברואר[[#Totals],[שעות נוספות   ]],פברואר[[#Totals],[שעות נוספות    ]])","v":0}]
[]
[null,"מרץ","שבוע 1","שעות נוספות","שבוע 2","שעות נוספות ","שבוע 3","שעות נוספות  ","שבוע 4","שעות נוספות   ","שבוע 5","שעות נוספות    "]
[null,"שני"]
[null,"שלישי"]
[null,"רביעי"]
[null,"חמישי"]
[null,"שישי"]
[null,"שבת"]
[null,"ראשון"]
[null,"סה\"כ שעות שבועיות",{"$f":"SUBTOTAL(109,מרץ[שבוע 1])","v":0},{"$f":"SUBTOTAL(109,מרץ[שעות נוספות])","v":0},{"$f":"SUBTOTAL(109,מרץ[שבוע 2])","v":0},{"$f":"SUBTOTAL(109,מרץ[[שעות נוספות ]])","v":0},{"$f":"SUBTOTAL(109,מרץ[שבוע 3])","v":0},{"$f":"SUBTOTAL(109,מרץ[[שעות נוספות  ]])","v":0},{"$f":"SUBTOTAL(109,מרץ[שבוע 4])","v":0},{"$f":"SUBTOTAL(109,מרץ[[שעות נוספות   ]])","v":0},{"$f":"SUBTOTAL(109,מרץ[שבוע 5])","v":0},{"$f":"SUBTOTAL(109,מרץ[[שעות נוספות    ]])","v":0}]
[null,"סה\"כ למרץ: שעות רגילות",{"$f":"SUM(מרץ[[#Totals],[שבוע 1]],מרץ[[#Totals],[שבוע 2]],מרץ[[#Totals],[שבוע 3]],מרץ[[#Totals],[שבוע 4]],מרץ[[#Totals],[שבוע 5]])","v":0},"סה\"כ למרץ: שעות נוספות",null,{"$f":"SUM(מרץ[[#Totals],[שעות נוספות]],מרץ[[#Totals],[שעות נוספות ]],מרץ[[#Totals],[שעות נוספות  ]],מרץ[[#Totals],[שעות נוספות   ]],מרץ[[#Totals],[שעות נוספות    ]])","v":0}]
[]
[null,"אפריל, מאי, יוני      כרטיס שעות של עובד: יומי, שבועי, חודשי, שנתי"]
[null,"אפריל","שבוע 1","שעות נוספות","שבוע 2","שעות נוספות ","שבוע 3","שעות נוספות  ","שבוע 4","שעות נוספות   ","שבוע 5","שעות נוספות    "]
[null,"שני"]
[null,"שלישי"]
[null,"רביעי"]
[null,"חמישי"]
[null,"שישי"]
[null,"שבת"]
[null,"ראשון"]
[null,"סה\"כ שעות שבועיות",{"$f":"SUBTOTAL(109,אפריל[שבוע 1])","v":0},{"$f":"SUBTOTAL(109,אפריל[שעות נוספות])","v":0},{"$f":"SUBTOTAL(109,אפריל[שבוע 2])","v":0},{"$f":"SUBTOTAL(109,אפריל[[שעות נוספות ]])","v":0},{"$f":"SUBTOTAL(109,אפריל[שבוע 3])","v":0},{"$f":"SUBTOTAL(109,אפריל[[שעות נוספות  ]])","v":0},{"$f":"SUBTOTAL(109,אפריל[שבוע 4])","v":0},{"$f":"SUBTOTAL(109,אפריל[[שעות נוספות   ]])","v":0},{"$f":"SUBTOTAL(109,אפריל[שבוע 5])","v":0},{"$f":"SUBTOTAL(109,אפריל[[שעות נוספות    ]])","v":0}]
[null,"סה\"כ לאפריל: שעות רגילות",{"$f":"SUM(אפריל[[#Totals],[שבוע 1]],אפריל[[#Totals],[שבוע 2]],אפריל[[#Totals],[שבוע 3]],אפריל[[#Totals],[שבוע 4]],אפריל[[#Totals],[שבוע 5]])","v":0},"סה\"כ לאפריל: שעות נוספות",null,{"$f":"SUM(אפריל[[#Totals],[שעות נוספות]],אפריל[[#Totals],[שעות נוספות ]],אפריל[[#Totals],[שעות נוספות  ]],אפריל[[#Totals],[שעות נוספות   ]],אפריל[[#Totals],[שעות נוספות    ]])","v":0}]
[]
[null,"מאי","שבוע 1","שעות נוספות","שבוע 2","שעות נוספות ","שבוע 3","שעות נוספות  ","שבוע 4","שעות נוספות   ","שבוע 5","שעות נוספות    "]
[null,"שני"]
[null,"שלישי"]
[null,"רביעי"]
[null,"חמישי"]
[null,"שישי"]
[null,"שבת"]
[null,"ראשון"]
[null,"סה\"כ שעות שבועיות",{"$f":"SUBTOTAL(109,מאי[שבוע 1])","v":0},{"$f":"SUBTOTAL(109,מאי[שעות נוספות])","v":0},{"$f":"SUBTOTAL(109,מאי[שבוע 2])","v":0},{"$f":"SUBTOTAL(109,מאי[[שעות נוספות ]])","v":0},{"$f":"SUBTOTAL(109,מאי[שבוע 3])","v":0},{"$f":"SUBTOTAL(109,מאי[[שעות נוספות  ]])","v":0},{"$f":"SUBTOTAL(109,מאי[שבוע 4])","v":0},{"$f":"SUBTOTAL(109,מאי[[שעות נוספות   ]])","v":0},{"$f":"SUBTOTAL(109,מאי[שבוע 5])","v":0},{"$f":"SUBTOTAL(109,מאי[[שעות נוספות    ]])","v":0}]
[null,"סה\"כ למאי: שעות רגילות",{"$f":"SUM(מאי[[#Totals],[שבוע 1]],מאי[[#Totals],[שבוע 2]],מאי[[#Totals],[שבוע 3]],מאי[[#Totals],[שבוע 4]],מאי[[#Totals],[שבוע 5]])","v":0},"סה\"כ למאי: שעות נוספות",null,{"$f":"SUM(מאי[[#Totals],[שעות נוספות]],מאי[[#Totals],[שעות נוספות ]],מאי[[#Totals],[שעות נוספות  ]],מאי[[#Totals],[שעות נוספות   ]],מאי[[#Totals],[שעות נוספות    ]])","v":0}]
[]
[null,"יוני","שבוע 1","שעות נוספות","שבוע 2","שעות נוספות ","שבוע 3","שעות נוספות  ","שבוע 4","שעות נוספות   ","שבוע 5","שעות נוספות    "]
[null,"שני"]
[null,"שלישי"]
[null,"רביעי"]
[null,"חמישי"]
[null,"שישי"]
[null,"שבת"]
[null,"ראשון"]
[null,"סה\"כ שעות שבועיות",{"$f":"SUBTOTAL(109,יוני[שבוע 1])","v":0},{"$f":"SUBTOTAL(109,יוני[שעות נוספות])","v":0},{"$f":"SUBTOTAL(109,יוני[שבוע 2])","v":0},{"$f":"SUBTOTAL(109,יוני[[שעות נוספות ]])","v":0},{"$f":"SUBTOTAL(109,יוני[שבוע 3])","v":0},{"$f":"SUBTOTAL(109,יוני[[שעות נוספות  ]])","v":0},{"$f":"SUBTOTAL(109,יוני[שבוע 4])","v":0},{"$f":"SUBTOTAL(109,יוני[[שעות נוספות   ]])","v":0},{"$f":"SUBTOTAL(109,יוני[שבוע 5])","v":0},{"$f":"SUBTOTAL(109,יוני[[שעות נוספות    ]])","v":0}]
[null,"סה\"כ ליוני: שעות רגילות",{"$f":"SUM(יוני[[#Totals],[שבוע 1]],יוני[[#Totals],[שבוע 2]],יוני[[#Totals],[שבוע 3]],יוני[[#Totals],[שבוע 4]],יוני[[#Totals],[שבוע 5]])","v":0},"סה\"כ ליוני: שעות נוספות",null,{"$f":"SUM(יוני[[#Totals],[שעות נוספות]],יוני[[#Totals],[שעות נוספות ]],יוני[[#Totals],[שעות נוספות  ]],יוני[[#Totals],[שעות נוספות   ]],יוני[[#Totals],[שעות נוספות    ]])","v":0}]
[]
[null,"יולי, אוגוסט, ספטמבר      כרטיס שעות של עובד: יומי, שבועי, חודשי, שנתי"]
[null,"יולי","שבוע 1","שעות נוספות","שבוע 2","שעות נוספות ","שבוע 3","שעות נוספות  ","שבוע 4","שעות נוספות   ","שבוע 5","שעות נוספות    "]
[null,"שני"]
[null,"שלישי"]
[null,"רביעי"]
[null,"חמישי"]
[null,"שישי"]
[null,"שבת"]
[null,"ראשון"]
[null,"סה\"כ שעות שבועיות",{"$f":"SUBTOTAL(109,יולי[שבוע 1])","v":0},{"$f":"SUBTOTAL(109,יולי[שעות נוספות])","v":0},{"$f":"SUBTOTAL(109,יולי[שבוע 2])","v":0},{"$f":"SUBTOTAL(109,יולי[[שעות נוספות ]])","v":0},{"$f":"SUBTOTAL(109,יולי[שבוע 3])","v":0},{"$f":"SUBTOTAL(109,יולי[[שעות נוספות  ]])","v":0},{"$f":"SUBTOTAL(109,יולי[שבוע 4])","v":0},{"$f":"SUBTOTAL(109,יולי[[שעות נוספות   ]])","v":0},{"$f":"SUBTOTAL(109,יולי[שבוע 5])","v":0},{"$f":"SUBTOTAL(109,יולי[[שעות נוספות    ]])","v":0}]
[null,"סה\"כ ליולי: שעות רגילות",{"$f":"SUM(יולי[[#Totals],[שבוע 1]],יולי[[#Totals],[שבוע 2]],יולי[[#Totals],[שבוע 3]],יולי[[#Totals],[שבוע 4]],יולי[[#Totals],[שבוע 5]])","v":0},"סה\"כ ליולי: שעות נוספות",null,{"$f":"SUM(יולי[[#Totals],[שעות נוספות]],יולי[[#Totals],[שעות נוספות ]],יולי[[#Totals],[שעות נוספות  ]],יולי[[#Totals],[שעות נוספות   ]],יולי[[#Totals],[שעות נוספות    ]])","v":0}]
[]
[null,"אוגוסט","שבוע 1","שעות נוספות","שבוע 2","שעות נוספות ","שבוע 3","שעות נוספות  ","שבוע 4","שעות נוספות   ","שבוע 5","שעות נוספות    "]
[null,"שני"]
[null,"שלישי"]
[null,"רביעי"]
[null,"חמישי"]
[null,"שישי"]
[null,"שבת"]
[null,"ראשון"]
[null,"סה\"כ שעות שבועיות",{"$f":"SUBTOTAL(109,אוגוסט[שבוע 1])","v":0},{"$f":"SUBTOTAL(109,אוגוסט[שעות נוספות])","v":0},{"$f":"SUBTOTAL(109,אוגוסט[שבוע 2])","v":0},{"$f":"SUBTOTAL(109,אוגוסט[[שעות נוספות ]])","v":0},{"$f":"SUBTOTAL(109,אוגוסט[שבוע 3])","v":0},{"$f":"SUBTOTAL(109,אוגוסט[[שעות נוספות  ]])","v":0},{"$f":"SUBTOTAL(109,אוגוסט[שבוע 4])","v":0},{"$f":"SUBTOTAL(109,אוגוסט[[שעות נוספות   ]])","v":0},{"$f":"SUBTOTAL(109,אוגוסט[שבוע 5])","v":0},{"$f":"SUBTOTAL(109,אוגוסט[[שעות נוספות    ]])","v":0}]
[null,"סה\"כ לאוגוסט: שעות רגילות",{"$f":"SUM(אוגוסט[[#Totals],[שבוע 1]],אוגוסט[[#Totals],[שבוע 2]],אוגוסט[[#Totals],[שבוע 3]],אוגוסט[[#Totals],[שבוע 4]],אוגוסט[[#Totals],[שבוע 5]])","v":0},"סה\"כ לאוגוסט: שעות נוספות",null,{"$f":"SUM(אוגוסט[[#Totals],[שעות נוספות]],אוגוסט[[#Totals],[שעות נוספות ]],אוגוסט[[#Totals],[שעות נוספות  ]],אוגוסט[[#Totals],[שעות נוספות   ]],אוגוסט[[#Totals],[שעות נוספות    ]])","v":0}]
[]
[null,"ספטמבר","שבוע 1","שעות נוספות","שבוע 2","שעות נוספות ","שבוע 3","שעות נוספות  ","שבוע 4","שעות נוספות   ","שבוע 5","שעות נוספות    "]
[null,"שני"]
[null,"שלישי"]
[null,"רביעי"]
[null,"חמישי"]
[null,"שישי"]
[null,"שבת"]
[null,"ראשון"]
[null,"סה\"כ שעות שבועיות",{"$f":"SUBTOTAL(109,ספטמבר[שבוע 1])","v":0},{"$f":"SUBTOTAL(109,ספטמבר[שעות נוספות])","v":0},{"$f":"SUBTOTAL(109,ספטמבר[שבוע 2])","v":0},{"$f":"SUBTOTAL(109,ספטמבר[[שעות נוספות ]])","v":0},{"$f":"SUBTOTAL(109,ספטמבר[שבוע 3])","v":0},{"$f":"SUBTOTAL(109,ספטמבר[[שעות נוספות  ]])","v":0},{"$f":"SUBTOTAL(109,ספטמבר[שבוע 4])","v":0},{"$f":"SUBTOTAL(109,ספטמבר[[שעות נוספות   ]])","v":0},{"$f":"SUBTOTAL(109,ספטמבר[שבוע 5])","v":0},{"$f":"SUBTOTAL(109,ספטמבר[[שעות נוספות    ]])","v":0}]
[null,"סה\"כ לספטמבר: שעות רגילות",{"$f":"SUM(ספטמבר[[#Totals],[שבוע 1]],ספטמבר[[#Totals],[שבוע 2]],ספטמבר[[#Totals],[שבוע 3]],ספטמבר[[#Totals],[שבוע 4]],ספטמבר[[#Totals],[שבוע 5]])","v":0},"סה\"כ לספטמבר: שעות נוספות",null,{"$f":"SUM(ספטמבר[[#Totals],[שעות נוספות]],ספטמבר[[#Totals],[שעות נוספות ]],ספטמבר[[#Totals],[שעות נוספות  ]],ספטמבר[[#Totals],[שעות נוספות   ]],ספטמבר[[#Totals],[שעות נוספות    ]])","v":0}]
[]
[null,"אוקטובר, נובמבר, דצמבר      כרטיס שעות של עובד: יומי, שבועי, חודשי, שנתי"]
[null,"אוקטובר","שבוע 1","שעות נוספות","שבוע 2","שעות נוספות ","שבוע 3","שעות נוספות  ","שבוע 4","שעות נוספות   ","שבוע 5","שעות נוספות    "]
[null,"שני"]
[null,"שלישי"]
[null,"רביעי"]
[null,"חמישי"]
[null,"שישי"]
[null,"שבת"]
[null,"ראשון"]
[null,"סה\"כ שעות שבועיות",{"$f":"SUBTOTAL(109,אוקטובר[שבוע 1])","v":0},{"$f":"SUBTOTAL(109,אוקטובר[שעות נוספות])","v":0},{"$f":"SUBTOTAL(109,אוקטובר[שבוע 2])","v":0},{"$f":"SUBTOTAL(109,אוקטובר[[שעות נוספות ]])","v":0},{"$f":"SUBTOTAL(109,אוקטובר[שבוע 3])","v":0},{"$f":"SUBTOTAL(109,אוקטובר[[שעות נוספות  ]])","v":0},{"$f":"SUBTOTAL(109,אוקטובר[שבוע 4])","v":0},{"$f":"SUBTOTAL(109,אוקטובר[[שעות נוספות   ]])","v":0},{"$f":"SUBTOTAL(109,אוקטובר[שבוע 5])","v":0},{"$f":"SUBTOTAL(109,אוקטובר[[שעות נוספות    ]])","v":0}]
[null,"סה\"כ לאוקטובר: שעות רגילות",{"$f":"SUM(אוקטובר[[#Totals],[שבוע 1]],אוקטובר[[#Totals],[שבוע 2]],אוקטובר[[#Totals],[שבוע 3]],אוקטובר[[#Totals],[שבוע 4]],אוקטובר[[#Totals],[שבוע 5]])","v":0},"סה\"כ לאוקטובר: שעות נוספות",null,{"$f":"SUM(אוקטובר[[#Totals],[שעות נוספות]],אוקטובר[[#Totals],[שעות נוספות ]],אוקטובר[[#Totals],[שעות נוספות  ]],אוקטובר[[#Totals],[שעות נוספות   ]],אוקטובר[[#Totals],[שעות נוספות    ]])","v":0}]
[]
[null,"נובמבר","שבוע 1","שעות נוספות","שבוע 2","שעות נוספות ","שבוע 3","שעות נוספות  ","שבוע 4","שעות נוספות   ","שבוע 5","שעות נוספות    "]
[null,"שני"]
[null,"שלישי"]
[null,"רביעי"]
[null,"חמישי"]
[null,"שישי"]
[null,"שבת"]
[null,"ראשון"]
[null,"סה\"כ שעות שבועיות",{"$f":"SUBTOTAL(109,נובמבר[שבוע 1])","v":0},{"$f":"SUBTOTAL(109,נובמבר[שעות נוספות])","v":0},{"$f":"SUBTOTAL(109,נובמבר[שבוע 2])","v":0},{"$f":"SUBTOTAL(109,נובמבר[[שעות נוספות ]])","v":0},{"$f":"SUBTOTAL(109,נובמבר[שבוע 3])","v":0},{"$f":"SUBTOTAL(109,נובמבר[[שעות נוספות  ]])","v":0},{"$f":"SUBTOTAL(109,נובמבר[שבוע 4])","v":0},{"$f":"SUBTOTAL(109,נובמבר[[שעות נוספות   ]])","v":0},{"$f":"SUBTOTAL(109,נובמבר[שבוע 5])","v":0},{"$f":"SUBTOTAL(109,נובמבר[[שעות נוספות    ]])","v":0}]
[null,"סה\"כ לנובמבר: שעות רגילות",{"$f":"SUM(נובמבר[[#Totals],[שבוע 1]],נובמבר[[#Totals],[שבוע 2]],נובמבר[[#Totals],[שבוע 3]],נובמבר[[#Totals],[שבוע 4]],נובמבר[[#Totals],[שבוע 5]])","v":0},"סה\"כ לנובמבר: שעות נוספות",null,{"$f":"SUM(נובמבר[[#Totals],[שעות נוספות]],נובמבר[[#Totals],[שעות נוספות ]],נובמבר[[#Totals],[שעות נוספות  ]],נובמבר[[#Totals],[שעות נוספות   ]],נובמבר[[#Totals],[שעות נוספות    ]])","v":0}]
[]
[null,"דצמבר","שבוע 1","שעות נוספות","שבוע 2","שעות נוספות ","שבוע 3","שעות נוספות  ","שבוע 4","שעות נוספות   ","שבוע 5","שעות נוספות    "]
[null,"שני"]
[null,"שלישי"]
[null,"רביעי"]
[null,"חמישי"]
[null,"שישי"]
[null,"שבת"]
[null,"ראשון"]
[null,"סה\"כ שעות שבועיות",{"$f":"SUBTOTAL(109,דצמבר[שבוע 1])","v":0},{"$f":"SUBTOTAL(109,דצמבר[שעות נוספות])","v":0},{"$f":"SUBTOTAL(105,דצמבר[שבוע 2])","v":0},{"$f":"SUBTOTAL(109,דצמבר[[שעות נוספות ]])","v":0},{"$f":"SUBTOTAL(109,דצמבר[שבוע 3])","v":0},{"$f":"SUBTOTAL(109,דצמבר[[שעות נוספות  ]])","v":0},{"$f":"SUBTOTAL(109,דצמבר[שבוע 4])","v":0},{"$f":"SUBTOTAL(109,דצמבר[[שעות נוספות   ]])","v":0},{"$f":"SUBTOTAL(109,דצמבר[שבוע 5])","v":0},{"$f":"SUBTOTAL(109,דצמבר[[שעות נוספות    ]])","v":0}]
[null,"סה\"כ לדצמבר: שעות רגילות",{"$f":"SUM(דצמבר[[#Totals],[שבוע 1]],דצמבר[[#Totals],[שבוע 2]],דצמבר[[#Totals],[שבוע 3]],דצמבר[[#Totals],[שבוע 4]],דצמבר[[#Totals],[שבוע 5]])","v":0},"סה\"כ לדצמבר: שעות נוספות",null,{"$f":"SUM(דצמבר[[#Totals],[שעות נוספות]],דצמבר[[#Totals],[שעות נוספות ]],דצמבר[[#Totals],[שעות נוספות  ]],דצמבר[[#Totals],[שעות נוספות   ]],דצמבר[[#Totals],[שעות נוספות    ]])","v":0}]